fUSD/lending_fUSD_20240701
["ID","MTS","AMOUNT","RATE_DAILY","PERIOD"]
[330793678,1719796470381,452.0,0.0001498,30]
[330793679,1719796470862,452.0,0.0001497,30]
[330793680,1719796471324,452.0,0.00015989,30]
[330793681,1719796471981,150.5,0.0001499,30]
[330793682,1719796472015,452.0,0.00015979,30]
[330793683,1719796472272,150.5,0.0001498,30]
[330793684,1719796472340,452.0,0.00015969,30]
[330793685,1719796472691,150.5,0.0001497,30]
[330793686,1719796473234,235.5,0.00015989,30]
[330793688,1719796732281,2374.41133701,0.00011199,2]
[330793689,1719796734938,4453.28777438,0.00011199,2]
[330793690,1719796746726,2830.64410437,0.00011199,2]
[330793691,1719796813983,1286.76187843,0.00011199,2]
[330793692,1719796831401,181.0,0.0001499,30]
[330793693,1719796831889,181.0,0.0001498,30]
[330793694,1719796832343,181.0,0.0001497,30]
[330793695,1719796832804,181.0,0.00015989,30]
[330793696,1719796833329,181.0,0.00015979,30]
[330793697,1719796833853,181.0,0.00015969,30]
[330793698,1719796838754,2049.87487454,0.00011199,2]
[330793699,1719796879641,2024.40030017,0.00011199,2]
[330793700,1719797007597,753.56799231,0.00011199,2]
[330793701,1719797084392,787.94090939,0.00011199,2]
[330793702,1719797110388,527.94009131,0.00011199,2]
[330793703,1719797140440,456.22772113,0.00011199,2]
[330793705,1719797191197,150.5,0.0001499,30]
[330793706,1719797191665,150.5,0.0001498,30]
[330793707,1719797192123,150.5,0.0001497,30]
[330793708,1719797192626,275.5,0.00015989,30]
[330793709,1719797195003,363.76426011,0.00011199,2]
[330793710,1719797201042,18275.40234874,0.00011199,2]
[330793711,1719797203149,-240.03954308,0.00011447,2]
[330793712,1719797211510,474.34627005,0.00011199,2]
[330793713,1719797216317,252.32328744,0.00011199,2]
[330793832,1719797225702,307.73444188,0.00011199,2]
[330793833,1719797232408,297.60689096,0.00011199,2]
[330793834,1719797238811,266.26883619,0.00011199,2]
[330793835,1719797239423,599.45,0.00010517,2]
[330793836,1719797242313,159.21619931,0.00011199,2]
[330793837,1719797247426,283.9733406,0.00011199,2]
[330793838,1719797257808,279.86864003,0.00011199,2]
[330793839,1719797286864,477.23298742,0.00011199,2]
[330793840,1719797298382,251.10919789,0.00011199,2]
[330793841,1719797307202,166.14401618,0.00011199,2]
[330793842,1719797315768,196.20443442,0.00011199,2]
[330793843,1719797349478,155.0,0.00011199,2]
[330793844,1719797371119,1254.22653528,0.00011199,2]
[330793845,1719797376626,365.92361382,0.00011199,2]
[330793846,1719797420227,155.0,0.00011199,2]
[330793883,1719797433106,-483.00394116,0.00011447,2]
[330793884,1719797433118,-491.95651576,0.00011447,2]
[330793885,1719797433128,-746.17448062,0.0001205,2]
[330793886,1719797433139,-841.87522338,0.0001205,2]
[330793887,1719797433148,-386.23959695,0.00012111,2]
[330793893,1719797438574,-297.10755853,0.00012111,2]
[330793894,1719797438584,-158.43957204,0.00012401,2]
[330793895,1719797438596,-608.07701525,0.0001241,2]
[330793896,1719797438608,-438.70900783,0.0001241,2]
[330793897,1719797438620,-3084.70397692,0.0001241,2]
[330793898,1719797438630,-186.43,0.00012424,2]
[330793899,1719797438640,-1195.29,0.00012427,2]
[330793900,1719797438650,-250.0,0.00012439,2]
[330793901,1719797438660,-300.0,0.00012444,2]
[330793902,1719797438670,-528.27,0.00012445,2]
[330793903,1719797438679,-150.99,0.00012445,2]
[330793904,1719797438689,-250.0,0.00012446,2]
[330793905,1719797438699,-500.0,0.00012602,2]
[330793906,1719797438709,-500.0,0.00012602,2]
[330793907,1719797438725,-503.98333009,0.00012602,2]
[330793908,1719797438734,-500.0,0.00012602,2]
[330793909,1719797438744,-599.45,0.00012781,2]
[330793910,1719797438753,-1000.0,0.00012789,2]
[330793911,1719797438765,-151.27,0.00012792,2]
[330793912,1719797438774,-1169.85,0.00012862,2]
[330793913,1719797438783,-185.95,0.00012864,2]
[330793914,1719797438792,-158.43957202,0.00012892,2]
[330793915,1719797438806,-150.99,0.00012892,2]
[330793916,1719797438815,-2055.84,0.00012943,2]
[330793917,1719797438825,-150.0,0.00013365,2]
[330793918,1719797438834,-4878.7,0.00013366,2]
[330793919,1719797438843,-4878.7,0.0001337,2]
[330793920,1719797438852,-160.5503996,0.00013373,2]
[330793921,1719797438864,-287.72775144,0.00013373,2]
[330793939,1719797440150,-4430.42184896,0.00013373,2]
[330793940,1719797440160,-4878.7,0.00013377,2]
[330793941,1719797440170,-4878.7,0.0001338,2]
[330793942,1719797440181,-158.43957202,0.00013382,2]
[330793943,1719797440191,-4878.7,0.00013384,2]
[330793944,1719797440201,-4878.7,0.00013387,2]
[330793945,1719797440211,-188.95,0.0001339,2]
[330793946,1719797440222,-4878.7,0.00013391,2]
[330793947,1719797440232,-4878.7,0.00013394,2]
[330793948,1719797440242,-3154.36203467,0.00013398,2]
[330793949,1719797440254,-1724.33796533,0.00013398,2]
[330793950,1719797440265,-4878.7,0.00013401,2]
[330793951,1719797440275,-4878.7,0.00013405,2]
[330793952,1719797440286,-4878.7,0.00013408,2]
[330793953,1719797440297,-4878.7,0.00013412,2]
[330793954,1719797440307,-4878.7,0.00013415,2]
[330793955,1719797440317,-4878.7,0.00013419,2]
[330793956,1719797440327,-4878.7,0.00013422,2]
[330793957,1719797440336,-4878.7,0.00013426,2]
[330793958,1719797440347,-4878.7,0.00013429,2]
[330793959,1719797440357,-4878.7,0.00013433,2]
[330793960,1719797440367,-297.60689096,0.00013472,2]
[330793961,1719797440377,-266.29859701,0.00013472,2]
[330793962,1719797440387,-940.68953093,0.00013574,2]
[330793963,1719797440398,-158.27105518,0.00013574,2]
[330793964,1719797440407,-155.0,0.00013574,2]
[330793965,1719797440417,-155.18525296,0.00013574,2]
[330793966,1719797440427,-1999.53725332,0.00013574,2]
[330793967,1719797440437,-155.08986272,0.00013574,2]
[330793968,1719797440446,-168.18,0.00013605,2]
[330793969,1719797440456,-420.0,0.00013655,2]
[330793970,1719797440466,-187.91,0.00013699,2]
[330793971,1719797440476,-1942.6,0.00013699,2]
[330793972,1719797440486,-183.25,0.00013699,2]
[330793973,1719797440496,-661.3,0.00013699,2]
[330793974,1719797440506,-200.0,0.00013699,2]
[330793975,1719797440518,-174.028,0.000137,2]
[330793976,1719797440529,-150.0,0.00013752,2]
[330793977,1719797440539,-20274.61326579,0.000138,2]
[330793978,1719797440551,-1396.1762,0.000138,2]
[330793979,1719797440561,-796.56278638,0.000138,2]
[330793980,1719797440571,-838.51829,0.0001386,2]
[330793981,1719797440581,-158.43957202,0.00013873,2]
[330793982,1719797440593,-16111.2464,0.000139,2]
[330793983,1719797440603,-1389.9544,0.000139,2]
[330793984,1719797440613,-623.0705,0.000139,2]
[330793985,1719797440623,-2155.0,0.000139,2]
[330793986,1719797440632,-608.67,0.00013973,3]
[330793987,1719797440642,-186.43,0.00013977,2]
[330793988,1719797440652,-155.46160983,0.00013989,2]
[330793989,1719797440663,-500.0,0.00013999,3]
[330793990,1719797440672,-500.0,0.00013999,3]
[330793991,1719797440682,-500.0,0.00013999,3]
[330793992,1719797440693,-500.0,0.00013999,3]
[330793993,1719797440705,-500.0,0.00013999,3]
[330793994,1719797440715,-500.0,0.00013999,3]
[330793995,1719797440725,-500.0,0.00013999,3]
[330793996,1719797440734,-500.0,0.00013999,3]
[330793997,1719797440745,-504.2077327,0.00013999,3]
[330793998,1719797440755,-500.0,0.00013999,3]
[330793999,1719797440765,-500.0,0.00013999,3]
[330794000,1719797440775,-500.0,0.00013999,3]
[330794001,1719797440785,-341.27085755,0.00013999,3]
[330794002,1719797440795,-500.0,0.00013999,3]
[330794003,1719797440805,-388.07553965,0.00013999,3]
[330794004,1719797440815,-150.3060076,0.00013999,3]
[330794005,1719797440824,-297.74427408,0.00013999,3]
[330794006,1719797440835,-10550.86765564,0.00014,2]
[330794007,1719797440844,-20274.61326574,0.00014033,2]
[330794008,1719797440854,-796.56278629,0.00014033,2]
[330794009,1719797440864,-230.39,0.00014109,3]
[330794010,1719797440874,-461.29,0.00014109,3]
[330794011,1719797440884,-500.0,0.00014109,3]
[330794012,1719797440894,-173.22,0.00014188,2]
[330794013,1719797440903,-500.0,0.00014218,3]
[330794015,1719797440913,-500.0,0.00014246,2]
[330794017,1719797440922,-500.0,0.00014246,2]
[330794019,1719797440932,-3206.0,0.00014247,2]
[330794021,1719797440942,-1605.9576938,0.00014247,2]
[330794026,1719797440985,-1665.0423062,0.00014247,2]
[330794028,1719797440995,-10000.0,0.00014266,3]
[330794030,1719797441005,-227.60957819,0.00014266,3]
[330794032,1719797441015,-500.0,0.00014266,3]
[330794034,1719797441024,-261.03950257,0.00014266,3]
[330794036,1719797441034,-20274.61326574,0.00014267,2]
[330794038,1719797441043,-796.56278629,0.00014267,2]
[330794040,1719797441052,-200.0,0.000143,5]
[330794042,1719797441062,-500.0,0.00014328,3]
[330794043,1719797441072,-10000.0,0.00014375,3]
[330794044,1719797441082,-632.58486405,0.00014375,3]
[330794045,1719797441092,-838.51829,0.0001438,2]
[330794046,1719797441102,-1000.0,0.00014388,2]
[330794047,1719797441112,-500.0,0.000144,5]
[330794048,1719797441123,-898.0,0.00014409,2]
[330794049,1719797441132,-500.0,0.00014438,3]
[330794050,1719797441142,-10000.0,0.00014485,3]
[330794051,1719797441152,-20274.61326574,0.000145,2]
[330794052,1719797441161,-796.56278629,0.000145,2]
[330794053,1719797441170,-800.0,0.000145,5]
[330794054,1719797441180,-506.673902,0.00014521,2]
[330794055,1719797441189,-507.71747758,0.00014547,3]
[330794056,1719797441199,-1000.0,0.00014564,2]
[330794057,1719797441209,-10000.0,0.00014595,3]
[330794058,1719797441218,-1100.0,0.000146,5]
[330794059,1719797441228,-225.0,0.00014621,2]
[330794060,1719797441237,-500.0,0.000147,2]
[330794061,1719797441246,-485.0062,0.000147,2]
[330794062,1719797441255,-1400.0,0.000147,5]
[330794063,1719797441264,-10000.0,0.00014704,3]
[330794064,1719797441274,-220.28,0.00014712,3]
[330794065,1719797441283,-20274.61326574,0.00014733,2]
[330794066,1719797441292,-796.56278629,0.00014733,2]
[330794067,1719797441302,-2415.0,0.000148,2]
[330794068,1719797441311,-1304.0,0.000148,2]
[330794069,1719797441320,-3204.0,0.000148,2]
[330794070,1719797441330,-548.0,0.000148,2]
[330794071,1719797441339,-287.766,0.000148,2]
[330794072,1719797441349,-1986.0,0.000148,2]
[330794073,1719797441358,-1069.0,0.000148,2]
[330794074,1719797441368,-151.67,0.000148,2]
[330794075,1719797441377,-4155.891,0.000148,2]
[330794076,1719797441387,-1274.0,0.000148,2]
[330794077,1719797441397,-287.889,0.000148,2]
[330794078,1719797441407,-5174.0,0.000148,2]
[330794079,1719797441417,-1830.0,0.000148,2]
[330794080,1719797441426,-1657.0,0.000148,2]
[330794081,1719797441436,-308.654,0.000148,2]
[330794082,1719797441445,-1199.609,0.000148,2]
[330794083,1719797441454,-1663.0,0.000148,2]
[330794084,1719797441464,-200.0,0.000148,5]
[330794085,1719797441474,-10000.0,0.00014814,3]
[330794086,1719797441498,-3489.3284,0.00014827,2]
[330794087,1719797441508,-4036.8318,0.00014827,2]
[330794088,1719797441521,-150.0,0.00014829,2]
[330794089,1719797441532,-311.89459511,0.00014867,2]
[330794090,1719797441541,-200.0,0.00014879,2]
[330794091,1719797441550,-500.0,0.0001488,2]
[330794092,1719797441561,-200.0,0.0001488,2]
[330794093,1719797441570,-200.0,0.0001488,2]
[330794094,1719797441743,-519.05,0.00014898,3]
[330794095,1719797441761,-220.17649278,0.00014898,3]
[330794096,1719797441771,-156.43402271,0.00014898,2]
[330794097,1719797441781,-501.95154105,0.00014898,3]
[330794098,1719797441791,-962.1511,0.000149,2]
[330794099,1719797441801,-200.0,0.000149,5]
[330794100,1719797441811,-4491.32388573,0.000149,2]
[330794101,1719797441822,-10000.0,0.00014923,3]
[330794102,1719797441831,-30000.0,0.00014927,2]
[330794103,1719797441841,-20274.61326574,0.00014967,2]
[330794104,1719797441851,-796.56278629,0.00014967,2]
[330794105,1719797441860,-151.0,0.00014967,2]
[330794106,1719797441870,-151.0,0.00014967,2]
[330794107,1719797441880,-169.016532,0.00014967,2]
[330794108,1719797441890,-151.0,0.00014967,2]
[330794109,1719797441900,-169.016532,0.00014967,2]
[330794110,1719797441910,-151.0,0.00014967,2]
[330794111,1719797441919,-151.0,0.00014967,2]
[330794112,1719797441929,-151.0,0.00014967,2]
[330794113,1719797441939,-151.0,0.00014967,2]
[330794114,1719797441948,-151.0,0.00014967,2]
[330794115,1719797441957,-151.0,0.00014967,2]
[330794116,1719797441967,-216.035747,0.00014967,2]
[330794117,1719797441976,-151.0,0.00014967,2]
[330794118,1719797441986,-216.035747,0.00014967,2]
[330794119,1719797442003,-151.0,0.00014967,2]
[330794120,1719797442019,-842.702218,0.00014967,2]
[330794121,1719797442028,-842.702218,0.00014967,2]
[330794122,1719797442040,-151.0,0.00014967,2]
[330794123,1719797442049,-151.0,0.00014967,2]
[330794124,1719797442060,-151.0,0.00014967,2]
[330794125,1719797442069,-151.0,0.00014967,2]
[330794126,1719797442079,-373.544002,0.00014967,2]
[330794127,1719797442088,-373.544002,0.00014967,2]
[330794128,1719797442098,-151.0,0.00014967,2]
[330794129,1719797442109,-1817.701466,0.00014967,2]
[330794130,1719797442119,-151.0,0.00014967,2]
[330794131,1719797442129,-151.0,0.00014967,2]
[330794132,1719797442138,-1817.701466,0.00014967,2]
[330794133,1719797442147,-296.301251,0.00014967,2]
[330794134,1719797442157,-151.0,0.00014967,2]
[330794135,1719797442166,-152.001837,0.00014967,2]
[330794136,1719797442176,-151.0,0.00014967,2]
[330794137,1719797442186,-151.0,0.00014967,2]
[330794138,1719797442195,-151.0,0.00014967,2]
[330794139,1719797442204,-151.0,0.00014967,2]
[330794140,1719797442213,-151.0,0.00014967,2]
[330794141,1719797442223,-151.0,0.00014967,2]
[330794142,1719797442232,-151.0,0.00014967,2]
[330794143,1719797442242,-227.0716558,0.00014973,2]
[330794144,1719797442252,-587.0,0.00014983,2]
[330794145,1719797442262,-173.3598153,0.00014989,2]
[330794146,1719797442271,-173.3598153,0.0001499,2]
[330794147,1719797442281,-173.3598153,0.0001499,2]
[330794148,1719797442291,-173.3598153,0.0001499,2]
[330794149,1719797442300,-173.3598153,0.0001499,2]
[330794150,1719797442310,-377.34345602,0.00014999,3]
[330794151,1719797442319,-500.0,0.00014999,3]
[330794152,1719797442329,-511.32,0.00014999,3]
[330794153,1719797442338,-500.0,0.00014999,3]
[330794154,1719797442347,-500.0,0.00014999,3]
[330794155,1719797442357,-500.0,0.00014999,3]
[330794156,1719797442366,-500.0,0.00014999,3]
[330794157,1719797442376,-500.0,0.00014999,3]
[330794158,1719797442386,-192.06562184,0.00014999,3]
[330794159,1719797442395,-500.0,0.00014999,3]
[330794160,1719797442405,-500.0,0.00014999,3]
[330794161,1719797442414,-500.0,0.00014999,3]
[330794162,1719797442423,-500.0,0.00014999,3]
[330794163,1719797442433,-495.62449589,0.00014999,3]
[330794164,1719797442443,-500.0,0.00014999,3]
[330794165,1719797442452,-500.0,0.00014999,3]
[330794166,1719797442462,-231.46092185,0.00014999,3]
[330794167,1719797442471,-500.0,0.00014999,3]
[330794168,1719797442481,-209.70110189,0.00014999,2]
[330794169,1719797442490,-644.4608185,0.00014999,2]
[330794170,1719797442515,-566.0,0.00015,2]
[330794171,1719797442529,-10581453.88829982,0.00015,2]
[330794172,1719797442538,-1000.0,0.00015,2]
[330794173,1719797442547,-798.69866002,0.00015,2]
[330794174,1719797442558,-5000.0,0.00015,2]
[330794175,1719797442567,-183.86,0.00015,10]
[330794176,1719797442577,-622.7781919,0.00015,2]
[330794177,1719797442587,-490.0,0.00015,2]
[330794178,1719797442597,-625804.67659736,0.00015,2]
[330794179,1719797442607,-10000.0,0.00015,2]
[330794180,1719797442616,-233799.3706729,0.00015,2]
[330794181,1719797442625,-29275.49753402,0.00015,2]
[330794182,1719797442634,-169.71864522,0.00015,2]
[330794183,1719797442643,-24639.44045413,0.00015,2]
[330794184,1719797442652,-1648.41734047,0.00015,2]
[330794185,1719797442662,-360285.83108215,0.00015,2]
[330794186,1719797442673,-151.0,0.00015,2]
[330794187,1719797442683,-197.473045,0.00015,2]
[330794188,1719797442693,-151.0,0.00015,2]
[330794189,1719797442703,-151.0,0.00015,2]
[330794190,1719797442712,-151.0,0.00015,2]
[330794191,1719797442722,-151.0,0.00015,2]
[330794192,1719797442731,-151.0,0.00015,2]
[330794193,1719797442740,-151.0,0.00015,2]
[330794194,1719797442750,-151.0,0.00015,2]
[330794195,1719797442759,-151.0,0.00015,2]
[330794196,1719797442769,-151.0,0.00015,2]
[330794197,1719797442778,-151.0,0.00015,2]
[330794198,1719797442787,-151.0,0.00015,2]
[330794199,1719797442797,-255.707785,0.00015,2]
[330794200,1719797442806,-151.0,0.00015,2]
[330794201,1719797442815,-151.0,0.00015,2]
[330794202,1719797442825,-151.0,0.00015,2]
[330794203,1719797442835,-152.12755,0.00015,2]
[330794206,1719797442845,-151.0,0.00015,2]
[330794207,1719797442854,-151.0,0.00015,2]
[330794208,1719797442863,-151.0,0.00015,2]
[330794209,1719797442872,-239.508976,0.00015,2]
[330794211,1719797442881,-151.0,0.00015,2]
[330794212,1719797442890,-151.0,0.00015,2]
[330794213,1719797442900,-151.0,0.00015,2]
[330794214,1719797442909,-151.0,0.00015,2]
[330794215,1719797442918,-161.552564,0.00015,2]
[330794216,1719797442928,-156.569985,0.00015,2]
[330794217,1719797442937,-151.0,0.00015,2]
[330794218,1719797442946,-151.0,0.00015,2]
[330794219,1719797442955,-206.439814,0.00015,2]
[330794220,1719797442965,-151.0,0.00015,2]
[330794221,1719797442975,-251.504932,0.00015,2]
[330794222,1719797442985,-151.0,0.00015,2]
[330794223,1719797442996,-151.0,0.00015,2]
[330794224,1719797443009,-170.218395,0.00015,2]
[330794225,1719797443024,-170.218395,0.00015,2]
[330794226,1719797443034,-170.218395,0.00015,2]
[330794227,1719797443043,-151.0,0.00015,2]
[330794228,1719797443052,-151.0,0.00015,2]
[330794229,1719797443062,-151.0,0.00015,2]
[330794230,1719797443072,-170.218395,0.00015,2]
[330794231,1719797443081,-170.218395,0.00015,2]
[330794232,1719797443091,-170.218395,0.00015,2]
[330794233,1719797443100,-151.0,0.00015,2]
[330794234,1719797443112,-151.0,0.00015,2]
[330794235,1719797443122,-151.621177,0.00015,2]
[330794236,1719797443132,-270.084044,0.00015,2]
[330794237,1719797443141,-270.084044,0.00015,2]
[330794238,1719797443151,-270.084044,0.00015,2]
[330794239,1719797443161,-270.084044,0.00015,2]
[330794240,1719797443171,-270.084044,0.00015,2]
[330794241,1719797443181,-270.084044,0.00015,2]
[330794242,1719797443192,-151.0,0.00015,2]
[330794243,1719797443202,-151.0,0.00015,2]
[330794244,1719797443212,-151.0,0.00015,2]
[330794245,1719797443222,-151.0,0.00015,2]
[330794246,1719797443231,-151.0,0.00015,2]
[330794249,1719797443241,-151.0,0.00015,2]
[330794252,1719797443262,-151.0,0.00015,2]
[330794255,1719797443272,-151.0,0.00015,2]
[330794258,1719797443281,-151.0,0.00015,2]
[330794260,1719797443290,-153.176636,0.00015,2]
[330794262,1719797443299,-151.0,0.00015,2]
[330794264,1719797443308,-151.0,0.00015,2]
[330794266,1719797443317,-151.0,0.00015,2]
[330794268,1719797443327,-151.0,0.00015,2]
[330794269,1719797443336,-151.0,0.00015,2]
[330794270,1719797443345,-151.0,0.00015,2]
[330794271,1719797443355,-277.502471,0.00015,2]
[330794272,1719797443363,-151.0,0.00015,2]
[330794273,1719797443372,-152.479974,0.00015,2]
[330794275,1719797443382,-151.0,0.00015,2]
[330794277,1719797443390,-151.0,0.00015,2]
[330794279,1719797443399,-151.0,0.00015,2]
[330794281,1719797443408,-289.725,0.00015,2]
[330794283,1719797443417,-173.448689,0.00015,2]
[330794285,1719797443426,-173.448689,0.00015,2]
[330794287,1719797443436,-151.0,0.00015,2]
[330794289,1719797443446,-173.448689,0.00015,2]
[330794291,1719797443455,-151.581443,0.00015,2]
[330794293,1719797443465,-173.448689,0.00015,2]
[330794295,1719797443474,-173.448689,0.00015,2]
[330794297,1719797443484,-173.448689,0.00015,2]
[330794299,1719797443493,-151.0,0.00015,2]
[330794301,1719797443517,-151.0,0.00015,2]
[330794303,1719797443526,-151.0,0.00015,2]
[330794305,1719797443535,-151.0,0.00015,2]
[330794307,1719797443544,-151.0,0.00015,2]
[330794309,1719797443554,-151.0,0.00015,2]
[330794311,1719797443563,-151.0,0.00015,2]
[330794313,1719797443572,-151.0,0.00015,2]
[330794315,1719797443582,-151.0,0.00015,2]
[330794317,1719797443592,-151.0,0.00015,2]
[330794319,1719797443601,-153.767828,0.00015,2]
[330794321,1719797443611,-151.0,0.00015,2]
[330794323,1719797443620,-151.0,0.00015,2]
[330794324,1719797443629,-151.0,0.00015,2]
[330794326,1719797443638,-151.0,0.00015,2]
[330794327,1719797443648,-151.0,0.00015,2]
[330794329,1719797443658,-151.0,0.00015,2]
[330794331,1719797443667,-188.698865,0.00015,2]
[330794332,1719797443677,-188.698865,0.00015,2]
[330794334,1719797443686,-188.698865,0.00015,2]
[330794336,1719797443696,-221.812666,0.00015,2]
[330794337,1719797443706,-221.812666,0.00015,2]
[330794339,1719797443715,-221.812666,0.00015,2]
[330794340,1719797443725,-188.698865,0.00015,2]
[330794342,1719797443734,-221.812666,0.00015,2]
[330794343,1719797443744,-188.698865,0.00015,2]
[330794345,1719797443760,-221.812666,0.00015,2]
[330794347,1719797443769,-151.0,0.00015,2]
[330794348,1719797443778,-188.698865,0.00015,2]
[330794350,1719797443788,-221.812666,0.00015,2]
[330794352,1719797443798,-151.0,0.00015,2]
[330794353,1719797443807,-151.0,0.00015,2]
[330794355,1719797443817,-151.0,0.00015,2]
[330794357,1719797443827,-151.0,0.00015,2]
[330794358,1719797443836,-151.0,0.00015,2]
[330794359,1719797443846,-151.0,0.00015,2]
[330794360,1719797443856,-151.0,0.00015,2]
[330794361,1719797443865,-151.0,0.00015,2]
[330794362,1719797443875,-151.0,0.00015,2]
[330794363,1719797443885,-151.0,0.00015,2]
[330794364,1719797443895,-151.0,0.00015,2]
[330794365,1719797443904,-151.0,0.00015,2]
[330794366,1719797443914,-151.0,0.00015,2]
[330794367,1719797443923,-151.0,0.00015,2]
[330794368,1719797443932,-151.0,0.00015,2]
[330794369,1719797443942,-151.0,0.00015,2]
[330794370,1719797443951,-151.0,0.00015,2]
[330794371,1719797443960,-151.0,0.00015,2]
[330794372,1719797443969,-151.0,0.00015,2]
[330794373,1719797443979,-152.428217,0.00015,2]
[330794374,1719797443988,-170.291294,0.00015,2]
[330794375,1719797444000,-151.0,0.00015,2]
[330794376,1719797444010,-151.0,0.00015,2]
[330794377,1719797444020,-151.0,0.00015,2]
[330794378,1719797444028,-151.0,0.00015,2]
[330794379,1719797444037,-151.0,0.00015,2]
[330794380,1719797444047,-151.0,0.00015,2]
[330794381,1719797444056,-151.736865,0.00015,2]
[330794382,1719797444066,-446.814266,0.00015,2]
[330794383,1719797444075,-446.814266,0.00015,2]
[330794384,1719797444084,-446.814266,0.00015,2]
[330794385,1719797444093,-446.814266,0.00015,2]
[330794386,1719797444104,-151.0,0.00015,2]
[330794388,1719797444114,-446.814266,0.00015,2]
[330794390,1719797444124,-151.0,0.00015,2]
[330794392,1719797444133,-446.814266,0.00015,2]
[330794393,1719797444143,-151.0,0.00015,2]
[330794394,1719797444152,-151.0,0.00015,2]
[330794395,1719797444162,-151.0,0.00015,2]
[330794396,1719797444171,-151.0,0.00015,2]
[330794397,1719797444181,-151.0,0.00015,2]
[330794398,1719797444192,-151.0,0.00015,2]
[330794399,1719797444239,-151.0,0.00015,2]
[330794400,1719797444254,-151.0,0.00015,2]
[330794401,1719797444263,-151.0,0.00015,2]
[330794402,1719797444272,-151.0,0.00015,2]
[330794403,1719797444281,-290.482319,0.00015,2]
[330794404,1719797444290,-151.0,0.00015,2]
[330794405,1719797444299,-151.0,0.00015,2]
[330794406,1719797444308,-151.0,0.00015,2]
[330794407,1719797444317,-151.0,0.00015,2]
[330794408,1719797444327,-151.0,0.00015,2]
[330794409,1719797444335,-853.349043,0.00015,2]
[330794410,1719797444344,-853.349043,0.00015,2]
[330794411,1719797444353,-151.0,0.00015,2]
[330794412,1719797444363,-853.349043,0.00015,2]
[330794413,1719797444373,-151.0,0.00015,2]
[330794414,1719797444382,-151.0,0.00015,2]
[330794415,1719797444391,-853.349043,0.00015,2]
[330794416,1719797444401,-853.349043,0.00015,2]
[330794417,1719797444411,-853.349043,0.00015,2]
[330794418,1719797444420,-151.0,0.00015,2]
[330794419,1719797444429,-151.0,0.00015,2]
[330794420,1719797444439,-151.0,0.00015,2]
[330794421,1719797444449,-151.0,0.00015,2]
[330794422,1719797444459,-151.0,0.00015,2]
[330794423,1719797444468,-151.0,0.00015,2]
[330794424,1719797444478,-151.0,0.00015,2]
[330794425,1719797444488,-151.0,0.00015,2]
[330794426,1719797444498,-151.0,0.00015,2]
[330794427,1719797444515,-151.0,0.00015,2]
[330794428,1719797444527,-151.0,0.00015,2]